[Event "January 9 Early 2024"]
[Site "https://www.chess.com"]
[Date "2024.01.11"]
[Round "1"]
[White "Salman, Ilhan Serhat"]
[Black "Santos Latasa, Jaime"]
[Result "1/2-1/2"]
[Board "320"]
[TimeControl "180+1"]
[WhiteFideId "6361579"]
[BlackFideId "2293307"]
[WhiteElo "2503"]
[BlackElo "2918"]
[WhiteTeam "TUR"]
[BlackTeam "ESP"]
[WhiteClock "0:00:20"]
[BlackClock "0:00:21"]

1. d4 {[%clk 0:03:00]}  Nf6 {[%clk 0:02:59]} 2. Bg5 {[%clk 0:03:01]}  e6 {[%clk 0:02:57]} 3. Nf3 {[%clk 0:03:00]}  c5 {[%clk 0:02:55]} 4. e3 {[%clk 0:02:58]}  h6 {[%clk 0:02:50]} 5. Bh4 {[%clk 0:02:56]}  d5 {[%clk 0:02:50]} 6. c4 {[%clk 0:02:55]}  cxd4 {[%clk 0:02:45]} 7. Nxd4 {[%clk 0:02:54]}  Bb4+ {[%clk 0:02:42]} 8. Nd2 {[%clk 0:02:52]}  O-O {[%clk 0:02:19]} 9. a3 {[%clk 0:02:48]}  Be7 {[%clk 0:02:16]} 10. Be2 {[%clk 0:02:45]}  Nc6 {[%clk 0:02:15]} 11. N4f3 {[%clk 0:02:35]}  b6 {[%clk 0:02:02]} 12. O-O {[%clk 0:02:32]}  Bb7 {[%clk 0:02:00]} 13. Rc1 {[%clk 0:02:32]}  g5 {[%clk 0:01:56]} 14. Bg3 {[%clk 0:02:31]}  Nh5 {[%clk 0:01:56]} 15. cxd5 {[%clk 0:02:22]}  Qxd5 {[%clk 0:01:55]} 16. Bc4 {[%clk 0:02:19]}  Qf5 {[%clk 0:01:50]} 17. Qc2 {[%clk 0:02:14]}  Nxg3 {[%clk 0:01:47]} 18. hxg3 {[%clk 0:02:12]}  Qxc2 {[%clk 0:01:42]} 19. Rxc2 {[%clk 0:02:13]}  g4 {[%clk 0:01:42]} 20. Ne1 {[%clk 0:02:09]}  Ne5 {[%clk 0:01:40]} 21. Nd3 {[%clk 0:02:03]}  Nxc4 {[%clk 0:01:33]} 22. Nxc4 {[%clk 0:02:01]}  Rac8 {[%clk 0:01:31]} 23. Nde5 {[%clk 0:01:39]}  b5 {[%clk 0:01:31]} 24. Rd2 {[%clk 0:01:31]}  bxc4 {[%clk 0:01:27]} 25. Rd7 {[%clk 0:01:30]}  Bf6 {[%clk 0:01:21]} 26. Nxg4 {[%clk 0:01:28]}  Bxb2 {[%clk 0:01:21]} 27. Rxb7 {[%clk 0:01:28]}  c3 {[%clk 0:01:19]} 28. Nf6+ {[%clk 0:01:20]}  Kg7 {[%clk 0:01:17]} 29. Ne4 {[%clk 0:01:21]}  Rb8 {[%clk 0:01:10]} 30. Rxa7 {[%clk 0:01:10]}  c2 {[%clk 0:01:05]} 31. Nc5 {[%clk 0:00:56]}  Rfc8 {[%clk 0:00:28]} 32. Nd3 {[%clk 0:00:53]}  Rb3 {[%clk 0:00:25]} 33. Rd7 {[%clk 0:00:47]}  Bxa3 {[%clk 0:00:22]} 34. g4 {[%clk 0:00:45]}  Rxd3 {[%clk 0:00:20]} 35. Rxd3 {[%clk 0:00:45]}  c1=Q {[%clk 0:00:21]} 36. Rxc1 {[%clk 0:00:45]}  Bxc1 {[%clk 0:00:22]} 37. g3 {[%clk 0:00:45]}  Bb2 {[%clk 0:00:22]} 38. Rd2 {[%clk 0:00:45]}  Bf6 {[%clk 0:00:23]} 39. Kg2 {[%clk 0:00:44]}  Rc3 {[%clk 0:00:23]} 40. Ra2 {[%clk 0:00:44]}  Kg6 {[%clk 0:00:24]} 41. Kf3 {[%clk 0:00:45]}  Rc4 {[%clk 0:00:24]} 42. Re2 {[%clk 0:00:45]}  Kg5 {[%clk 0:00:24]} 43. Ra2 {[%clk 0:00:45]}  Rc7 {[%clk 0:00:21]} 44. Ra5+ {[%clk 0:00:45]}  Kg6 {[%clk 0:00:21]} 45. Ra2 {[%clk 0:00:45]}  Bc3 {[%clk 0:00:22]} 46. Rc2 {[%clk 0:00:45]}  Ba5 {[%clk 0:00:21]} 47. Ra2 {[%clk 0:00:44]}  Rc5 {[%clk 0:00:21]} 48. Rb2 {[%clk 0:00:40]}  Bc7 {[%clk 0:00:20]} 49. Ra2 {[%clk 0:00:39]}  Be5 {[%clk 0:00:20]} 50. Rd2 {[%clk 0:00:39]}  Kg5 {[%clk 0:00:19]} 51. Rd7 {[%clk 0:00:37]}  Rc7 {[%clk 0:00:19]} 52. Rd2 {[%clk 0:00:37]}  Rc4 {[%clk 0:00:19]} 53. Rd7 {[%clk 0:00:37]}  Kg6 {[%clk 0:00:18]} 54. Rd2 {[%clk 0:00:36]}  f6 {[%clk 0:00:19]} 55. Ra2 {[%clk 0:00:36]}  Rb4 {[%clk 0:00:19]} 56. Rc2 {[%clk 0:00:36]}  Rb2 {[%clk 0:00:19]} 57. Rc6 {[%clk 0:00:36]}  Kf7 {[%clk 0:00:18]} 58. Ra6 {[%clk 0:00:37]}  Bc3 {[%clk 0:00:17]} 59. Ra7+ {[%clk 0:00:36]}  Kg6 {[%clk 0:00:17]} 60. Ra6 {[%clk 0:00:28]}  Be1 {[%clk 0:00:16]} 61. Rxe6 {[%clk 0:00:27]}  Rxf2+ {[%clk 0:00:16]} 62. Ke4 {[%clk 0:00:28]}  Rf1 {[%clk 0:00:17]} 63. Re8 {[%clk 0:00:26]}  Bxg3 {[%clk 0:00:16]} 64. Rg8+ {[%clk 0:00:26]}  Kf7 {[%clk 0:00:16]} 65. Rh8 {[%clk 0:00:26]}  Kg7 {[%clk 0:00:17]} 66. Ra8 {[%clk 0:00:25]}  Bh4 {[%clk 0:00:17]} 67. Ra7+ {[%clk 0:00:24]}  Kg6 {[%clk 0:00:17]} 68. Ra6 {[%clk 0:00:20]}  Bg5 {[%clk 0:00:18]} 69. Ra3 {[%clk 0:00:19]}  Re1 {[%clk 0:00:18]} 70. Kf3 {[%clk 0:00:19]}  Rd1 {[%clk 0:00:15]} 71. Rb3 {[%clk 0:00:18]}  Rc1 {[%clk 0:00:15]} 72. Ra3 {[%clk 0:00:18]}  Rc4 {[%clk 0:00:15]} 73. Rd3 {[%clk 0:00:18]}  Kf7 {[%clk 0:00:16]} 74. Rb3 {[%clk 0:00:19]}  Ke6 {[%clk 0:00:16]} 75. Rb6+ {[%clk 0:00:19]}  Kd5 {[%clk 0:00:16]} 76. Rb5+ {[%clk 0:00:20]}  Rc5 {[%clk 0:00:17]} 77. Rb3 {[%clk 0:00:20]}  Kc4 {[%clk 0:00:17]} 78. Ra3 {[%clk 0:00:19]}  Rb5 {[%clk 0:00:18]} 79. Ra4+ {[%clk 0:00:19]}  Rb4 {[%clk 0:00:18]} 80. Ra3 {[%clk 0:00:18]}  Rb3 {[%clk 0:00:19]} 81. Ra4+ {[%clk 0:00:18]}  Kd5 {[%clk 0:00:19]} 82. Rd4+ {[%clk 0:00:18]}  Kc5 {[%clk 0:00:19]} 83. Re4 {[%clk 0:00:19]}  Rc3 {[%clk 0:00:19]} 84. Re8 {[%clk 0:00:19]}  Kd6 {[%clk 0:00:19]} 85. Re4 {[%clk 0:00:19]}  Rc5 {[%clk 0:00:17]} 86. Rd4+ {[%clk 0:00:18]}  Rd5 {[%clk 0:00:17]} 87. Ra4 {[%clk 0:00:18]}  Re5 {[%clk 0:00:18]} 88. Ra3 {[%clk 0:00:18]}  Ke6 {[%clk 0:00:19]} 89. Rb3 {[%clk 0:00:18]}  f5 {[%clk 0:00:20]} 90. Rb6+ {[%clk 0:00:17]}  Kf7 {[%clk 0:00:20]} 91. gxf5 {[%clk 0:00:18]}  Rxf5+ {[%clk 0:00:20]} 92. Ke4 {[%clk 0:00:16]}  Rf6 {[%clk 0:00:21]} 93. Rxf6+ {[%clk 0:00:15]}  Kxf6 {[%clk 0:00:20]} 94. Kf3 {[%clk 0:00:16]}  Kf5 {[%clk 0:00:20]} 95. Kg2 {[%clk 0:00:16]}  Kg4 {[%clk 0:00:19]} 96. Kh1 {[%clk 0:00:17]}  Kf3 {[%clk 0:00:20]} 97. e4 {[%clk 0:00:18]}  Be7 {[%clk 0:00:19]} 98. e5 {[%clk 0:00:19]}  h5 {[%clk 0:00:20]} 99. e6 {[%clk 0:00:20]}  h4 {[%clk 0:00:21]} 100. Kh2 {[%clk 0:00:20]} 1/2-1/2

[Event "January 9 Early 2024"]
[Site "https://www.chess.com"]
[Date "2024.01.11"]
[Round "1"]
[White "Murthy, Pappu"]
[Black "Haraguchi, Diego Sashaki"]
[Result "0-1"]
[Board "321"]
[TimeControl "180+1"]
[WhiteFideId "2013401"]
[BlackFideId "22729925"]
[WhiteElo "1893"]
[BlackElo "2540"]
[WhiteTeam "USA"]
[BlackTeam "BRA"]
[WhiteClock "0:00:10"]
[BlackClock "0:00:12"]

1. e4 {[%clk 0:02:59]}  e6 {[%clk 0:02:53]} 2. d4 {[%clk 0:02:58]}  c5 {[%clk 0:02:53]} 3. Nf3 {[%clk 0:02:56]}  cxd4 {[%clk 0:02:54]} 4. Nxd4 {[%clk 0:02:56]}  Nc6 {[%clk 0:02:54]} 5. Nc3 {[%clk 0:02:55]}  Nf6 {[%clk 0:02:55]} 6. Ndb5 {[%clk 0:02:52]}  Bb4 {[%clk 0:02:54]} 7. a3 {[%clk 0:02:51]}  Bxc3+ {[%clk 0:02:55]} 8. Nxc3 {[%clk 0:02:50]}  d5 {[%clk 0:02:55]} 9. exd5 {[%clk 0:02:47]}  exd5 {[%clk 0:02:56]} 10. Bd3 {[%clk 0:02:42]}  O-O {[%clk 0:02:57]} 11. O-O {[%clk 0:02:41]}  d4 {[%clk 0:02:53]} 12. Ne4 {[%clk 0:02:39]}  Re8 {[%clk 0:02:50]} 13. Bg5 {[%clk 0:02:33]}  Ne5 {[%clk 0:02:46]} 14. Nxf6+ {[%clk 0:02:20]}  gxf6 {[%clk 0:02:47]} 15. Bh4 {[%clk 0:01:55]}  Ng6 {[%clk 0:02:45]} 16. Qh5 {[%clk 0:01:51]}  Re5 {[%clk 0:02:40]} 17. Qh6 {[%clk 0:01:49]}  Bg4 {[%clk 0:02:17]} 18. Bg3 {[%clk 0:01:33]}  Re8 {[%clk 0:02:02]} 19. Rfe1 {[%clk 0:01:31]}  Qd5 {[%clk 0:02:01]} 20. h3 {[%clk 0:01:24]}  Bf5 {[%clk 0:02:01]} 21. Bxf5 {[%clk 0:01:21]}  Qxf5 {[%clk 0:02:02]} 22. Qd2 {[%clk 0:01:21]}  Qd5 {[%clk 0:01:51]} 23. Rad1 {[%clk 0:01:19]}  Rxe1+ {[%clk 0:01:43]} 24. Rxe1 {[%clk 0:01:17]}  Kg7 {[%clk 0:01:41]} 25. Rd1 {[%clk 0:01:16]}  Rd8 {[%clk 0:01:40]} 26. f3 {[%clk 0:01:07]}  a5 {[%clk 0:01:33]} 27. Bf2 {[%clk 0:01:06]}  d3 {[%clk 0:01:15]} 28. Qxd3 {[%clk 0:01:00]}  Qxd3 {[%clk 0:01:14]} 29. Rxd3 {[%clk 0:00:56]}  Rc8 {[%clk 0:01:10]} 30. c3 {[%clk 0:00:54]}  Ne5 {[%clk 0:01:07]} 31. Rd2 {[%clk 0:00:53]}  Nc4 {[%clk 0:01:06]} 32. Re2 {[%clk 0:00:52]}  Rd8 {[%clk 0:01:05]} 33. Bd4 {[%clk 0:00:51]}  Kg6 {[%clk 0:00:56]} 34. Kf2 {[%clk 0:00:51]}  Rd5 {[%clk 0:00:54]} 35. g4 {[%clk 0:00:51]}  Rb5 {[%clk 0:00:53]} 36. b4 {[%clk 0:00:33]}  Nxa3 {[%clk 0:00:50]} 37. bxa5 {[%clk 0:00:32]}  Nc4 {[%clk 0:00:48]} 38. Ra2 {[%clk 0:00:26]}  Nxa5 {[%clk 0:00:47]} 39. f4 {[%clk 0:00:23]}  f5 {[%clk 0:00:45]} 40. Kg3 {[%clk 0:00:22]}  f6 {[%clk 0:00:36]} 41. Kf3 {[%clk 0:00:19]}  Rd5 {[%clk 0:00:24]} 42. Rg2 {[%clk 0:00:18]}  Nc6 {[%clk 0:00:23]} 43. Rd2 {[%clk 0:00:14]}  fxg4+ {[%clk 0:00:21]} 44. hxg4 {[%clk 0:00:14]}  f5 {[%clk 0:00:21]} 45. g5 {[%clk 0:00:14]}  b5 {[%clk 0:00:20]} 46. Ke3 {[%clk 0:00:14]}  Rd7 {[%clk 0:00:17]} 47. Rh2 {[%clk 0:00:14]}  Re7+ {[%clk 0:00:15]} 48. Kd3 {[%clk 0:00:15]}  Nxd4 {[%clk 0:00:15]} 49. cxd4 {[%clk 0:00:14]}  Re4 {[%clk 0:00:15]} 50. Rh6+ {[%clk 0:00:14]}  Kg7 {[%clk 0:00:15]} 51. Rb6 {[%clk 0:00:14]}  Rxf4 {[%clk 0:00:15]} 52. Rxb5 {[%clk 0:00:14]}  Kg6 {[%clk 0:00:14]} 53. Ke3 {[%clk 0:00:14]}  Re4+ {[%clk 0:00:14]} 54. Kf3 {[%clk 0:00:13]}  Kxg5 {[%clk 0:00:15]} 55. Rd5 {[%clk 0:00:10]}  h5 {[%clk 0:00:15]} 56. Rd8 {[%clk 0:00:10]}  Re1 {[%clk 0:00:13]} 57. d5 {[%clk 0:00:10]}  Rf1+ {[%clk 0:00:12]} 58. Kg3 {[%clk 0:00:10]}  h4+ {[%clk 0:00:12]} 59. Kg2 {[%clk 0:00:10]}  Rd1 {[%clk 0:00:12]} 60. d6 {[%clk 0:00:10]}  Kg4 {[%clk 0:00:11]} 61. Rg8+ {[%clk 0:00:09]}  Kf4 {[%clk 0:00:12]} 62. Rd8 {[%clk 0:00:08]}  Rd3 {[%clk 0:00:11]} 63. d7 {[%clk 0:00:08]}  h3+ {[%clk 0:00:11]} 64. Kh2 {[%clk 0:00:08]}  Kf3 {[%clk 0:00:08]} 65. Rf8 {[%clk 0:00:06]}  Rxd7 {[%clk 0:00:07]} 66. Rxf5+ {[%clk 0:00:07]}  Kg4 {[%clk 0:00:07]} 67. Rf2 {[%clk 0:00:06]}  Rd3 {[%clk 0:00:07]} 68. Rc2 {[%clk 0:00:05]}  Rb3 {[%clk 0:00:07]} 69. Rd2 {[%clk 0:00:05]}  Kf3 {[%clk 0:00:06]} 70. Rc2 {[%clk 0:00:05]}  Rb4 {[%clk 0:00:05]} 71. Kxh3 {[%clk 0:00:05]}  Rb5 {[%clk 0:00:05]} 72. Kh2 {[%clk 0:00:06]}  Re5 {[%clk 0:00:03]} 73. Rg2 {[%clk 0:00:06]}  Rh5+ {[%clk 0:00:03]} 74. Kg1 {[%clk 0:00:06]}  Ra5 {[%clk 0:00:04]} 75. Kh2 {[%clk 0:00:07]}  Ra1 {[%clk 0:00:04]} 76. Rg3+ {[%clk 0:00:06]}  Kf4 {[%clk 0:00:05]} 77. Rg2 {[%clk 0:00:07]}  Ra3 {[%clk 0:00:05]} 78. Kg1 {[%clk 0:00:07]}  Kf3 {[%clk 0:00:05]} 79. Kh2 {[%clk 0:00:08]}  Ra4 {[%clk 0:00:05]} 80. Rg3+ {[%clk 0:00:08]}  Kf2 {[%clk 0:00:06]} 81. Rg2+ {[%clk 0:00:09]}  Kf1 {[%clk 0:00:06]} 82. Rg3 {[%clk 0:00:09]}  Rh4+ {[%clk 0:00:06]} 83. Rh3 {[%clk 0:00:09]}  Rf4 {[%clk 0:00:07]} 84. Kg3 {[%clk 0:00:09]}  Rf7 {[%clk 0:00:07]} 85. Rh1+ {[%clk 0:00:09]}  Ke2 {[%clk 0:00:07]} 86. Rh2+ {[%clk 0:00:09]}  Ke3 {[%clk 0:00:08]} 87. Rh3 {[%clk 0:00:09]}  Rg7+ {[%clk 0:00:08]} 88. Kh2+ {[%clk 0:00:10]}  Kf4 {[%clk 0:00:09]} 89. Ra3 {[%clk 0:00:09]}  Rh7+ {[%clk 0:00:09]} 90. Kg2 {[%clk 0:00:08]}  Rg7+ {[%clk 0:00:10]} 91. Kf2 {[%clk 0:00:09]}  Rd7 {[%clk 0:00:10]} 92. Ra4+ {[%clk 0:00:09]}  Kf5 {[%clk 0:00:11]} 93. Ra5+ {[%clk 0:00:09]}  Ke4 {[%clk 0:00:11]} 94. Ra4+ {[%clk 0:00:10]}  Kd3 {[%clk 0:00:12]} 95. Ra6 {[%clk 0:00:10]}  Rf7+ {[%clk 0:00:12]} 96. Rf6 {[%clk 0:00:10]}  Rxf6+ {[%clk 0:00:12]} 97. Ke1 {[%clk 0:00:11]}  Rf3 {[%clk 0:00:11]} 98. Kd1 {[%clk 0:00:10]}  Rf1# {[%clk 0:00:12]} 0-1

[Event "January 9 Early 2024"]
[Site "https://www.chess.com"]
[Date "2024.01.11"]
[Round "1"]
[White "Darmanin, Jake"]
[Black "Munoz, Francisco Javier"]
[Result "1/2-1/2"]
[Board "322"]
[TimeControl "180+1"]
[WhiteFideId "5601061"]
[BlackFideId "128368"]
[WhiteElo "2322"]
[BlackElo "2642"]
[WhiteTeam "MLT"]
[BlackTeam "ARG"]
[WhiteClock "0:00:03"]
[BlackClock "0:00:22"]

1. e4 {[%clk 0:03:00]}  e5 {[%clk 0:02:57]} 2. Nf3 {[%clk 0:03:00]}  Nc6 {[%clk 0:02:58]} 3. Bb5 {[%clk 0:02:59]}  a6 {[%clk 0:02:53]} 4. Ba4 {[%clk 0:02:58]}  Nge7 {[%clk 0:02:50]} 5. c3 {[%clk 0:02:55]}  g6 {[%clk 0:02:50]} 6. O-O {[%clk 0:02:54]}  Bg7 {[%clk 0:02:51]} 7. d4 {[%clk 0:02:55]}  exd4 {[%clk 0:02:51]} 8. cxd4 {[%clk 0:02:55]}  O-O {[%clk 0:02:52]} 9. d5 {[%clk 0:02:53]}  b5 {[%clk 0:02:52]} 10. Bc2 {[%clk 0:02:41]}  Nb4 {[%clk 0:02:53]} 11. Bb3 {[%clk 0:02:40]}  a5 {[%clk 0:02:53]} 12. a3 {[%clk 0:02:36]}  Na6 {[%clk 0:02:53]} 13. Nc3 {[%clk 0:02:35]}  a4 {[%clk 0:02:49]} 14. Ba2 {[%clk 0:02:28]}  Nc5 {[%clk 0:02:48]} 15. Nxb5 {[%clk 0:02:09]}  Ba6 {[%clk 0:02:44]} 16. Bc4 {[%clk 0:02:04]}  d6 {[%clk 0:02:44]} 17. Re1 {[%clk 0:01:55]}  Qd7 {[%clk 0:02:21]} 18. Qe2 {[%clk 0:01:43]}  Rfe8 {[%clk 0:02:14]} 19. Nbd4 {[%clk 0:01:42]}  Bxc4 {[%clk 0:02:08]} 20. Qxc4 {[%clk 0:01:41]}  Nc8 {[%clk 0:02:00]} 21. e5 {[%clk 0:01:22]}  Nb6 {[%clk 0:01:58]} 22. Qb5 {[%clk 0:01:14]}  dxe5 {[%clk 0:01:52]} 23. Qxd7 {[%clk 0:01:13]}  Ncxd7 {[%clk 0:01:39]} 24. Nb5 {[%clk 0:01:04]}  Nxd5 {[%clk 0:01:39]} 25. Rd1 {[%clk 0:00:48]}  c6 {[%clk 0:01:38]} 26. Nc7 {[%clk 0:00:42]}  Nxc7 {[%clk 0:01:36]} 27. Rxd7 {[%clk 0:00:42]}  Nd5 {[%clk 0:01:37]} 28. Rd6 {[%clk 0:00:38]}  e4 {[%clk 0:01:34]} 29. Ne1 {[%clk 0:00:34]}  Ra6 {[%clk 0:01:31]} 30. Rb1 {[%clk 0:00:29]}  Rb6 {[%clk 0:01:30]} 31. Nc2 {[%clk 0:00:25]}  Be5 {[%clk 0:01:30]} 32. Rd7 {[%clk 0:00:24]}  Nc3 {[%clk 0:01:28]} 33. Ra1 {[%clk 0:00:22]}  Ne2+ {[%clk 0:01:28]} 34. Kf1 {[%clk 0:00:23]}  Nxc1 {[%clk 0:01:28]} 35. Rxc1 {[%clk 0:00:23]}  Rxb2 {[%clk 0:01:28]} 36. Ne3 {[%clk 0:00:22]}  Ra2 {[%clk 0:01:26]} 37. Rxc6 {[%clk 0:00:21]}  Rb8 {[%clk 0:01:25]} 38. g3 {[%clk 0:00:18]}  Rbb2 {[%clk 0:01:24]} 39. Ng4 {[%clk 0:00:18]}  Rb1+ {[%clk 0:01:17]} 40. Kg2 {[%clk 0:00:18]}  Ba1 {[%clk 0:01:16]} 41. Rc8+ {[%clk 0:00:17]}  Kg7 {[%clk 0:01:16]} 42. Rcc7 {[%clk 0:00:17]}  g5 {[%clk 0:01:04]} 43. Rxf7+ {[%clk 0:00:16]}  Kg6 {[%clk 0:01:05]} 44. Rxh7 {[%clk 0:00:14]}  e3 {[%clk 0:01:02]} 45. Rh6+ {[%clk 0:00:14]}  Kf5 {[%clk 0:01:03]} 46. Rf7+ {[%clk 0:00:14]}  Ke4 {[%clk 0:01:03]} 47. Nxe3 {[%clk 0:00:13]}  Bd4 {[%clk 0:01:01]} 48. Re6+ {[%clk 0:00:13]}  Kd3 {[%clk 0:01:02]} 49. Rd7 {[%clk 0:00:13]}  Rbb2 {[%clk 0:00:58]} 50. Red6 {[%clk 0:00:11]}  Rxf2+ {[%clk 0:00:58]} 51. Kh3 {[%clk 0:00:12]}  Kxe3 {[%clk 0:00:57]} 52. Rxd4 {[%clk 0:00:12]}  Rxh2+ {[%clk 0:00:57]} 53. Kg4 {[%clk 0:00:12]}  Rxa3 {[%clk 0:00:58]} 54. R4d6 {[%clk 0:00:11]}  Re2 {[%clk 0:00:51]} 55. Kxg5 {[%clk 0:00:10]}  Kf2 {[%clk 0:00:51]} 56. g4 {[%clk 0:00:10]}  Rg3 {[%clk 0:00:50]} 57. Rf6+ {[%clk 0:00:09]}  Kg2 {[%clk 0:00:49]} 58. Kf4 {[%clk 0:00:07]}  a3 {[%clk 0:00:48]} 59. Rd4 {[%clk 0:00:06]}  a2 {[%clk 0:00:47]} 60. Ra4 {[%clk 0:00:07]}  Rf3+ {[%clk 0:00:30]} 61. Kg5 {[%clk 0:00:07]}  Rb3 {[%clk 0:00:30]} 62. Rfa6 {[%clk 0:00:07]}  Rbb2 {[%clk 0:00:30]} 63. Kf4 {[%clk 0:00:06]}  Rf2+ {[%clk 0:00:31]} 64. Kg5 {[%clk 0:00:06]}  Kf1 {[%clk 0:00:29]} 65. Kh6 {[%clk 0:00:06]}  Ke1 {[%clk 0:00:30]} 66. g5 {[%clk 0:00:06]}  Rh2+ {[%clk 0:00:31]} 67. Kg7 {[%clk 0:00:06]}  Kd1 {[%clk 0:00:31]} 68. g6 {[%clk 0:00:06]}  Kc1 {[%clk 0:00:31]} 69. Kf7 {[%clk 0:00:07]}  Kb1 {[%clk 0:00:31]} 70. g7 {[%clk 0:00:07]}  Rhg2 {[%clk 0:00:30]} 71. g8=Q {[%clk 0:00:07]}  Rbf2+ {[%clk 0:00:30]} 72. Ke6 {[%clk 0:00:07]}  Rxg8 {[%clk 0:00:29]} 73. Rb4+ {[%clk 0:00:07]}  Rb2 {[%clk 0:00:29]} 74. Rba4 {[%clk 0:00:07]}  Rg5 {[%clk 0:00:26]} 75. Kf6 {[%clk 0:00:06]}  Rc5 {[%clk 0:00:25]} 76. Ke6 {[%clk 0:00:06]}  Rcc2 {[%clk 0:00:21]} 77. Kd5 {[%clk 0:00:06]}  Kc1 {[%clk 0:00:21]} 78. Kd4 {[%clk 0:00:06]}  Kd2 {[%clk 0:00:21]} 79. Ke4 {[%clk 0:00:06]}  Kc1 {[%clk 0:00:18]} 80. Kd3 {[%clk 0:00:06]}  Rd2+ {[%clk 0:00:18]} 81. Ke3 {[%clk 0:00:06]}  Rbc2 {[%clk 0:00:19]} 82. R4a5 {[%clk 0:00:05]}  Kb1 {[%clk 0:00:20]} 83. Ra4 {[%clk 0:00:04]}  Rb2 {[%clk 0:00:20]} 84. R4a5 {[%clk 0:00:03]}  Rh2 {[%clk 0:00:21]} 85. Kf3 {[%clk 0:00:03]}  Rb3+ {[%clk 0:00:19]} 86. Kg4 {[%clk 0:00:02]}  Rc2 {[%clk 0:00:18]} 87. Kf4 {[%clk 0:00:02]}  Rcb2 {[%clk 0:00:19]} 88. Ke4 {[%clk 0:00:02]}  Rb4+ {[%clk 0:00:19]} 89. Kd3 {[%clk 0:00:02]}  R4b3+ {[%clk 0:00:19]} 90. Kc4 {[%clk 0:00:02]}  Rc2+ {[%clk 0:00:20]} 91. Kd4 {[%clk 0:00:02]}  Rb4+ {[%clk 0:00:20]} 92. Kd3 {[%clk 0:00:02]}  Rcb2 {[%clk 0:00:21]} 93. Kc3 {[%clk 0:00:03]}  R2b3+ {[%clk 0:00:20]} 94. Kd2 {[%clk 0:00:03]}  Rb2+ {[%clk 0:00:20]} 95. Kc3 {[%clk 0:00:04]}  Rb5 {[%clk 0:00:20]} 96. Rxa2 {[%clk 0:00:03]}  Rc5+ {[%clk 0:00:20]} 97. Kd4 {[%clk 0:00:03]}  Rxa2 {[%clk 0:00:21]} 98. Rxa2 {[%clk 0:00:03]}  Rc1 {[%clk 0:00:21]} 99. Ra3 {[%clk 0:00:02]}  Kb2 {[%clk 0:00:21]} 100. Rd3 {[%clk 0:00:02]}  Kc2 {[%clk 0:00:20]} 101. Rc3+ {[%clk 0:00:02]}  Kd2 {[%clk 0:00:21]} 102. Rxc1 {[%clk 0:00:03]}  Kxc1 {[%clk 0:00:22]} 1/2-1/2

[Event "January 9 Early 2024"]
[Site "https://www.chess.com"]
[Date "2024.01.11"]
[Round "2"]
[White "Kadric, Denis"]
[Black "Coca Cubillos, Jesus Alberto"]
[Result "1-0"]
[Board "1"]
[TimeControl "180+1"]
[WhiteFideId "14403803"]
[BlackFideId "4462912"]
[WhiteElo "2906"]
[BlackElo "2595"]
[WhiteTeam "MNE"]
[BlackTeam "COL"]
[WhiteClock "0:02:17"]
[BlackClock "0:02:58"]

1. e4 {[%clk 0:03:00]}  g6 {[%clk 0:03:00]} 2. d4 {[%clk 0:03:00]}  Bg7 {[%clk 0:03:01]} 3. Nc3 {[%clk 0:03:01]}  d6 {[%clk 0:03:00]} 4. f4 {[%clk 0:03:01]}  Nh6 {[%clk 0:02:59]} 5. Nf3 {[%clk 0:02:56]}  O-O {[%clk 0:02:59]} 6. Be2 {[%clk 0:02:49]}  f6 {[%clk 0:02:59]} 7. Be3 {[%clk 0:02:44]}  e6 {[%clk 0:03:00]} 8. h4 {[%clk 0:02:43]}  Nc6 {[%clk 0:03:00]} 9. h5 {[%clk 0:02:44]}  Ng4 {[%clk 0:02:58]} 10. Bg1 {[%clk 0:02:36]}  e5 {[%clk 0:02:58]} 11. hxg6 {[%clk 0:02:35]}  hxg6 {[%clk 0:02:59]} 12. Bc4+ {[%clk 0:02:21]}  Rf7 {[%clk 0:02:59]} 13. dxe5 {[%clk 0:02:20]}  fxe5 {[%clk 0:02:58]} 14. Ng5 {[%clk 0:02:17]} 1-0

[Event "January 9 Early 2024"]
[Site "https://www.chess.com"]
[Date "2024.01.11"]
[Round "2"]
[White "Smirnov, Timofey"]
[Black "Bolat, Inayat"]
[Result "0-1"]
[Board "3"]
[TimeControl "180+1"]
[WhiteFideId "24176427"]
[BlackFideId "13733125"]
[WhiteElo "1995"]
[BlackElo "2436"]
[WhiteTeam "RUS"]
[BlackTeam "KAZ"]
[WhiteClock "0:02:20"]
[BlackClock "0:02:29"]

1. d4 {[%clk 0:03:00]}  Nf6 {[%clk 0:02:57]} 2. Bf4 {[%clk 0:03:00]}  g6 {[%clk 0:02:57]} 3. Nc3 {[%clk 0:02:59]}  d5 {[%clk 0:02:57]} 4. e3 {[%clk 0:02:59]}  Bg7 {[%clk 0:02:57]} 5. h4 {[%clk 0:02:57]}  h5 {[%clk 0:02:56]} 6. Nf3 {[%clk 0:02:55]}  O-O {[%clk 0:02:53]} 7. Qd2 {[%clk 0:02:54]}  c5 {[%clk 0:02:49]} 8. dxc5 {[%clk 0:02:54]}  Ne4 {[%clk 0:02:40]} 9. Nxe4 {[%clk 0:02:51]}  dxe4 {[%clk 0:02:41]} 10. Qxd8 {[%clk 0:02:37]}  Rxd8 {[%clk 0:02:42]} 11. Nd2 {[%clk 0:02:37]}  Bxb2 {[%clk 0:02:40]} 12. Rb1 {[%clk 0:02:37]}  Bc3 {[%clk 0:02:40]} 13. Rb3 {[%clk 0:02:32]}  Bxd2+ {[%clk 0:02:38]} 14. Ke2 {[%clk 0:02:25]}  Be6 {[%clk 0:02:34]} 15. Rxb7 {[%clk 0:02:20]}  Bc4+ {[%clk 0:02:29]} 0-1

[Event "January 9 Early 2024"]
[Site "https://www.chess.com"]
[Date "2024.01.11"]
[Round "2"]
[White "Viasus, Juan Diego"]
[Black "Krstulovic, Alex"]
[Result "0-1"]
[Board "5"]
[TimeControl "180+1"]
[WhiteFideId "4464346"]
[BlackFideId "760056"]
[WhiteElo "1421"]
[BlackElo "2683"]
[WhiteTeam "COL"]
[BlackTeam "HUN"]
[WhiteClock "0:01:36"]
[BlackClock "0:02:33"]

1. Nf3 {[%clk 0:03:00]}  d5 {[%clk 0:02:57]} 2. g3 {[%clk 0:03:01]}  Nc6 {[%clk 0:02:58]} 3. d4 {[%clk 0:02:59]}  Bf5 {[%clk 0:02:58]} 4. Bg2 {[%clk 0:02:56]}  Nb4 {[%clk 0:02:58]} 5. Na3 {[%clk 0:02:56]}  e6 {[%clk 0:02:58]} 6. c3 {[%clk 0:02:56]}  Nc6 {[%clk 0:02:58]} 7. O-O {[%clk 0:02:53]}  Be7 {[%clk 0:02:58]} 8. Bf4 {[%clk 0:02:44]}  g5 {[%clk 0:02:56]} 9. Bd2 {[%clk 0:02:43]}  h5 {[%clk 0:02:55]} 10. Re1 {[%clk 0:02:42]}  Be4 {[%clk 0:02:52]} 11. Ne5 {[%clk 0:02:06]}  Bxg2 {[%clk 0:02:47]} 12. Kxg2 {[%clk 0:02:03]}  f5 {[%clk 0:02:43]} 13. Nxc6 {[%clk 0:02:01]}  bxc6 {[%clk 0:02:43]} 14. f3 {[%clk 0:02:02]}  g4 {[%clk 0:02:39]} 15. f4 {[%clk 0:01:55]}  Nf6 {[%clk 0:02:38]} 16. e3 {[%clk 0:01:56]}  Ne4 {[%clk 0:02:38]} 17. Nc2 {[%clk 0:01:55]}  Rb8 {[%clk 0:02:38]} 18. b4 {[%clk 0:01:52]}  h4 {[%clk 0:02:39]} 19. Qe2 {[%clk 0:01:50]}  hxg3 {[%clk 0:02:37]} 20. hxg3 {[%clk 0:01:49]}  Rh3 {[%clk 0:02:38]} 21. Rh1 {[%clk 0:01:49]}  Nxg3 {[%clk 0:02:36]} 22. Qa6 {[%clk 0:01:42]}  Rb6 {[%clk 0:02:33]} 23. Qxa7 {[%clk 0:01:36]}  Nxh1 {[%clk 0:02:33]} 0-1